fUST/lending_fUST_20250818
["ID","MTS","AMOUNT","RATE_DAILY","PERIOD"]
[380059738,1755521440978,-3033.16,0.00022986,3]
[380059739,1755521440988,-237.27705228,0.00022987,2]
[380059740,1755521440998,-164.95164136,0.00022987,2]
[380059741,1755521441008,-300.0,0.00022987,3]
[380059742,1755521441019,-480.0,0.00022987,3]
[380059743,1755521441029,-480.0,0.00022987,3]
[380059744,1755521441038,-635.97256103,0.00022987,2]
[380059745,1755521441052,-215.75323784,0.00022987,3]
[380059746,1755521441062,-948.15910089,0.00022987,2]
[380059747,1755521441072,-480.0,0.00022987,3]
[380059748,1755521441081,-585.33,0.00022987,3]
[380059749,1755521441091,-480.0,0.00022987,3]
[380059750,1755521441100,-480.0,0.00022989,2]
[380059751,1755521441110,-480.0,0.00022989,3]
[380059752,1755521441120,-197.33688221,0.00022989,2]
[380059753,1755521441129,-40687.46567203,0.0002299,2]
[380059754,1755521441141,-9570.36428806,0.0002299,2]
[380059755,1755521441152,-49742.17003991,0.0002299,2]
[380059756,1755521441162,-900.0,0.00023,2]
[380059757,1755521441172,-153.0,0.00023,2]
[380059758,1755521441182,-232.18122251,0.00023,3]
[380059759,1755521441191,-160.0,0.00023,2]
[380059760,1755521441201,-151.0,0.00023,2]
[380059761,1755521441215,-500.0,0.00023,2]
[380059762,1755521441224,-151.0,0.00023,2]
[380059763,1755521441234,-192.974,0.00023008,2]
[380059764,1755521441243,-220.1,0.00023008,3]
[380059765,1755521441253,-660.32,0.00023008,3]
[380059766,1755521441263,-10608.23465356,0.0002301,2]
[380059767,1755521441274,-423.67577278,0.0002301,2]
[380059768,1755521441286,-853.1100368,0.0002301,2]
[380059769,1755521441300,-5162.3268474,0.0002301,2]
[380059770,1755521441311,-910.14629998,0.0002301,2]
[380059771,1755521441343,-567.41104268,0.0002301,2]
[380059772,1755521441356,-11024.14394648,0.0002301,2]
[380059773,1755521441368,-6829.65695944,0.0002301,2]
[380059799,1755521446025,-432.0667886,0.00022854,2]
[380059800,1755521446035,-167.9332114,0.00022899,3]
[380059801,1755521446134,-312.0667886,0.00022899,3]
[380059802,1755521446143,-580.787823,0.00022932,2]
[380059803,1755521446152,-1457.40096695,0.0002301,2]
[380059807,1755521540788,1000.0,0.00028,120]
[380059808,1755521565220,1000.0,0.00028,120]
[380059809,1755521568674,1000.0,0.00028,120]
[380059812,1755521649508,186.616467,0.00013699,2]
[380059815,1755522050269,300.0,0.00028,120]
[380059846,1755522443095,-169.5130021,0.00019059,2]
[380059857,1755522546117,-2119.59613227,0.00019059,2]
[380059858,1755522547110,-2710.89086563,0.00019059,2]
[380059859,1755522547132,-168.08203113,0.00019347,2]
[380059860,1755522547158,-150.0,0.00019936,2]
[380059861,1755522547188,-138.5647013,0.00020882,2]
[380059869,1755522549143,-96.6652987,0.00020882,2]
[380059870,1755522549170,-300.0,0.00020999,2]
[380059871,1755522549194,-2883.56660816,0.00021,2]
[380059872,1755522570077,-5000.0,0.0002079,2]
[380059873,1755522570097,-2966.43339184,0.00021,2]
[380059874,1755522570117,-5000.92009555,0.00021419,2]
[380059875,1755522570142,-200.0,0.00021419,20]
[380059876,1755522570165,-200.0,0.00021419,20]
[380059877,1755522570188,-200.0,0.00021419,20]
[380059878,1755522570211,-200.0,0.00021419,20]
[380059879,1755522570233,-200.0,0.00021419,20]
[380059880,1755522570255,-200.0,0.00021419,20]
[380059881,1755522570278,-200.0,0.00021419,20]
[380059882,1755522570301,-200.0,0.00021419,20]
[380059883,1755522570324,-200.0,0.00021419,20]
[380059884,1755522570347,-200.0,0.00021419,20]
[380059885,1755522570367,-176.0,0.00021425,4]
[380059886,1755522570391,-352.84,0.00021831,2]
[380059887,1755522570412,-432.0667886,0.00021895,2]
[380059888,1755522570432,-417.60809316,0.000219,2]
[380059951,1755522632267,-150.0,0.00019946,2]
[380059953,1755522632277,-217.73,0.00020895,2]
[380059955,1755522632286,-332.06020707,0.00021681,2]
[380059957,1755522632297,-4667.93979293,0.00021681,2]
[380059959,1755522632306,-326.6,0.00021845,2]
[380059968,1755522632449,-444.56544844,0.000219,2]
[380059970,1755522632459,-480.0,0.0002204,3]
[380059972,1755522632468,-480.0,0.0002204,3]
[380059973,1755522632478,-390.27936034,0.0002204,3]
[380059974,1755522632489,-89.72063966,0.0002204,3]
[380059975,1755522632499,-432.0667886,0.00022041,2]
[380059976,1755522632508,-4914.33665573,0.000221,2]
[380059977,1755522632517,-300.0,0.00022109,2]
[380059978,1755522632527,-160.8129855,0.0002211,2]
[380059979,1755522632536,-580.787823,0.0002211,2]
[380059981,1755522632545,-580.787823,0.0002211,2]
[380059983,1755522632554,-160.8129855,0.0002211,2]
[380059985,1755522632564,-160.8129855,0.0002211,2]
[380059987,1755522632574,-580.787823,0.0002211,2]
[380059989,1755522632586,-580.787823,0.0002211,2]
[380059991,1755522632595,-160.8129855,0.0002211,2]
[380059993,1755522632605,-160.8129855,0.0002211,2]
[380059994,1755522632614,-235.76,0.0002211,10]
[380059995,1755522632624,-5124.8818694,0.0002212,2]
[380059996,1755522632636,-7763.09291205,0.0002212,2]
[380059999,1755522632676,-1074.74166481,0.0002212,2]
[380060001,1755522632688,-463.66376798,0.0002212,2]
[380060032,1755522638184,-5000.0,0.00019747,2]
[380060033,1755522638194,-253.05,0.00022114,10]
[380060034,1755522638203,-6839.97006423,0.0002212,2]
[380060035,1755522638215,-9132.3033225,0.0002212,2]
[380060036,1755522638242,-283.85756455,0.0002212,2]
[380060037,1755522638254,-528.0,0.0002212,2]
[380060038,1755522638266,-71979.87853231,0.0002212,2]
[380060039,1755522638275,-480.0,0.00022123,3]
[380060040,1755522638284,-480.0,0.00022123,3]
[380060041,1755522638293,-818.27,0.00022123,3]
[380060042,1755522638303,-480.0,0.00022123,3]
[380060043,1755522638312,-348.71,0.00022123,3]
[380060044,1755522638321,-480.0,0.00022123,3]
[380060045,1755522638331,-480.0,0.00022123,3]
[380060046,1755522638340,-480.0,0.00022124,3]
[380060047,1755522638350,-583.75,0.00022124,3]
[380060048,1755522638359,-480.0,0.00022124,3]
[380060049,1755522638368,-6143.04,0.00022124,3]
[380060050,1755522638378,-480.0,0.00022124,3]
[380060051,1755522638388,-480.0,0.00022124,3]
[380060052,1755522638397,-480.0,0.00022124,3]
[380060053,1755522638407,-480.0,0.00022124,3]
[380060054,1755522638416,-8378.93,0.00022124,3]
[380060056,1755522638426,-668.35,0.00022124,3]
[380060057,1755522638435,-1345.64,0.00022124,3]
[380060058,1755522638444,-215.75323784,0.00022124,3]
[380060059,1755522638453,-480.0,0.00022124,3]
[380060060,1755522638462,-480.0,0.00022124,3]
[380060061,1755522638472,-524.51,0.00022124,3]
[380060062,1755522638481,-939.53,0.00022124,3]
[380060063,1755522638490,-480.0,0.00022124,3]
[380060064,1755522638499,-1292.81,0.00022124,3]
[380060065,1755522638509,-480.0,0.00022124,3]
[380060066,1755522638518,-480.0,0.00022124,3]
[380060067,1755522638527,-480.0,0.00022124,3]
[380060068,1755522638536,-2183.31810187,0.00022125,2]
[380060069,1755522638545,-160.8129855,0.00022178,2]
[380060070,1755522638555,-480.0,0.00022314,3]
[380060071,1755522638564,-441.20300805,0.00022314,3]
[380060072,1755522638573,-480.0,0.00022314,3]
[380060073,1755522638588,-432.0667886,0.00022341,2]
[380060074,1755522638598,-480.0,0.00022397,3]
[380060075,1755522638609,-480.0,0.00022397,3]
[380060076,1755522638619,-818.27,0.00022397,3]
[380060077,1755522638631,-445.06563529,0.00022397,3]
[380060078,1755522638641,-480.0,0.00022397,3]
[380060079,1755522638651,-480.0,0.00022397,3]
[380060080,1755522638666,-480.0,0.00022398,3]
[380060081,1755522638675,-583.75,0.00022398,3]
[380060082,1755522638685,-442.53586852,0.00022398,3]
[380060083,1755522638695,-6143.04,0.00022398,3]
[380060084,1755522638704,-480.0,0.00022398,3]
[380060085,1755522638714,-449.25105022,0.00022398,3]
[380060086,1755522638723,-480.0,0.00022398,3]
[380060087,1755522638733,-444.74597071,0.00022398,3]
[380060088,1755522638742,-8378.93,0.00022398,3]
[380060089,1755522638752,-668.35,0.00022398,3]
[380060090,1755522638762,-1345.64,0.00022398,3]
[380060091,1755522638771,-480.0,0.00022398,3]
[380060092,1755522638780,-524.51,0.00022398,3]
[380060093,1755522638789,-939.53,0.00022398,3]
[380060094,1755522638799,-480.0,0.00022398,3]
[380060095,1755522638808,-1292.81,0.00022398,3]
[380060096,1755522638818,-441.16,0.00022398,3]
[380060097,1755522638827,-480.0,0.00022398,3]
[380060098,1755522638836,-480.0,0.00022398,3]
[380060099,1755522638845,-580.787823,0.000224,2]
[380060100,1755522638856,-160.8129855,0.000224,2]
[380060101,1755522638865,-580.787823,0.000224,2]
[380060102,1755522638874,-250.55074681,0.00022433,2]
[380060103,1755522638884,-160.8129855,0.00022478,2]
[380060104,1755522638893,-580.787823,0.00022478,2]
[380060105,1755522638903,-367.1845201,0.00022499,2]
[380060106,1755522638912,-7000.0,0.000225,2]
[380060107,1755522638921,-216.85420361,0.00022516,2]
[380060108,1755522638931,-480.0,0.0002252,3]
[380060110,1755522638940,-480.0,0.0002252,3]
[380060111,1755522638949,-480.0,0.0002252,3]
[380060113,1755522638958,-480.0,0.0002252,3]
[380060115,1755522638967,-1868.82,0.0002252,3]
[380060117,1755522638976,-480.0,0.0002252,3]
[380060119,1755522638985,-480.0,0.0002252,3]
[380060121,1755522638994,-615.27209013,0.0002252,3]
[380060123,1755522639003,-480.0,0.0002252,3]
[380060125,1755522639012,-480.0,0.0002252,3]
[380060127,1755522639022,-480.0,0.0002252,3]
[380060129,1755522639031,-480.0,0.0002252,3]
[380060131,1755522639040,-462.06618457,0.0002252,3]
[380060133,1755522639049,-462.32811205,0.0002252,3]
[380060135,1755522639059,-480.0,0.0002252,3]
[380060137,1755522639068,-420.0,0.0002252,3]
[380060139,1755522639077,-480.0,0.0002252,3]
[380060141,1755522639086,-460.0,0.0002252,3]
[380060143,1755522639096,-480.0,0.0002252,3]
[380060145,1755522639106,-480.0,0.0002252,3]
[380060147,1755522639115,-480.0,0.0002252,3]
[380060149,1755522639124,-480.0,0.0002252,3]
[380060150,1755522639134,-480.0,0.0002252,3]
[380060152,1755522639143,-463.32405753,0.0002252,3]
[380060154,1755522639152,-462.60185305,0.0002252,3]
[380060156,1755522639162,-463.28721641,0.0002252,3]
[380060158,1755522639172,-480.0,0.0002252,3]
[380060161,1755522639182,-1302.73,0.0002252,3]
[380060162,1755522639191,-480.0,0.0002252,3]
[380060164,1755522639200,-480.0,0.0002252,3]
[380060167,1755522639210,-480.0,0.0002252,3]
[380060168,1755522639219,-460.0,0.0002252,3]
[380060170,1755522639228,-460.0,0.0002252,3]
[380060172,1755522639238,-480.0,0.0002252,3]
[380060173,1755522639248,-612.71062919,0.0002252,3]
[380060174,1755522639258,-480.0,0.0002252,3]
[380060175,1755522639267,-480.0,0.0002252,3]
[380060176,1755522639277,-480.0,0.0002252,3]
[380060177,1755522639286,-500.0,0.0002252,3]
[380060178,1755522639295,-480.0,0.0002252,3]
[380060179,1755522639305,-480.0,0.0002252,3]
[380060180,1755522639314,-480.0,0.0002252,3]
[380060181,1755522639323,-480.0,0.0002252,3]
[380060182,1755522639332,-480.0,0.0002252,3]
[380060183,1755522639342,-480.0,0.0002252,3]
[380060184,1755522639352,-480.0,0.0002252,3]
[380060185,1755522639361,-461.06643778,0.0002252,3]
[380060186,1755522639372,-461.52453023,0.0002252,3]
[380060187,1755522639382,-461.23341543,0.0002252,3]
[380060188,1755522639391,-480.0,0.0002252,3]
[380060189,1755522639516,-480.0,0.0002252,3]
[380060190,1755522639527,-460.0,0.0002252,3]
[380060191,1755522639537,-460.0,0.0002252,3]
[380060192,1755522639546,-480.0,0.0002252,3]
[380060193,1755522639556,-480.0,0.0002252,3]
[380060194,1755522639565,-461.13198383,0.0002252,3]
[380060195,1755522639575,-460.0,0.0002252,3]
[380060196,1755522639588,-461.04499373,0.0002252,3]
[380060198,1755522639598,-465.49661024,0.0002252,3]
[380060199,1755522639607,-480.0,0.0002252,3]
[380060201,1755522639617,-474.91029136,0.0002252,3]
[380060203,1755522639627,-480.0,0.0002252,3]
[380060205,1755522639635,-480.0,0.0002252,3]
[380060207,1755522639645,-480.0,0.0002252,3]
[380060209,1755522639654,-480.0,0.0002252,3]
[380060211,1755522639664,-480.0,0.0002252,3]
[380060213,1755522639674,-500.0,0.0002252,3]
[380060215,1755522639683,-460.0,0.0002252,3]
[380060217,1755522639692,-460.58336235,0.0002252,3]
[380060218,1755522639702,-480.0,0.0002252,3]
[380060220,1755522639711,-480.0,0.0002252,3]
[380060222,1755522639720,-480.0,0.0002252,3]
[380060224,1755522639730,-480.0,0.0002252,3]
[380060226,1755522639739,-480.0,0.0002252,3]
[380060228,1755522639747,-460.95916158,0.0002252,3]
[380060230,1755522639757,-480.0,0.0002252,3]
[380060232,1755522639766,-480.0,0.0002252,3]
[380060234,1755522639775,-460.0,0.0002252,3]
[380060236,1755522639784,-480.0,0.0002252,3]
[380060238,1755522639794,-480.0,0.0002252,3]
[380060240,1755522639803,-480.0,0.0002252,3]
[380060242,1755522639812,-460.57860834,0.0002252,3]
[380060244,1755522639821,-1959.53,0.0002252,3]
[380060246,1755522639830,-480.0,0.0002252,3]
[380060248,1755522639840,-3358.6,0.0002252,3]
[380060250,1755522639849,-480.0,0.0002252,3]
[380060251,1755522639859,-480.0,0.0002252,3]
[380060253,1755522639869,-480.0,0.0002252,3]
[380060255,1755522639879,-480.0,0.0002252,3]
[380060258,1755522639889,-480.0,0.0002252,3]
[380060260,1755522639899,-460.0,0.0002252,3]
[380060262,1755522639908,-480.0,0.0002252,3]
[380060264,1755522639918,-601.1,0.0002252,3]
[380060266,1755522639926,-480.0,0.0002252,3]
[380060268,1755522639936,-480.0,0.0002252,3]
[380060270,1755522639946,-466.16039515,0.0002252,3]
[380060272,1755522639955,-480.0,0.0002252,3]
[380060274,1755522639964,-480.0,0.0002252,3]
[380060276,1755522639974,-550.04,0.0002252,3]
[380060278,1755522639983,-480.0,0.0002252,3]
[380060280,1755522639993,-480.0,0.0002252,3]
[380060282,1755522640003,-1724.96,0.0002252,3]
[380060284,1755522640013,-975.37,0.0002252,3]
[380060286,1755522640023,-574.07,0.0002252,3]
[380060288,1755522640033,-480.0,0.0002252,3]
[380060290,1755522640043,-761.62,0.0002252,3]
[380060292,1755522640053,-480.0,0.0002252,3]
[380060294,1755522640063,-480.0,0.0002252,3]
[380060296,1755522640072,-480.0,0.0002252,3]
[380060298,1755522640082,-714.19,0.0002252,3]
[380060300,1755522640091,-887.04,0.0002252,3]
[380060302,1755522640101,-480.0,0.0002252,3]
[380060304,1755522640111,-480.0,0.0002252,3]
[380060306,1755522640121,-480.0,0.0002252,3]
[380060308,1755522640131,-480.0,0.0002252,3]
[380060310,1755522640141,-1572.47,0.0002252,3]
[380060312,1755522640150,-480.0,0.0002252,3]
[380060314,1755522640160,-463.69797139,0.0002252,3]
[380060316,1755522640169,-480.0,0.0002252,3]
[380060318,1755522640179,-480.0,0.0002252,3]
[380060320,1755522640189,-1612.83,0.0002252,3]
[380060322,1755522640198,-480.0,0.0002252,3]
[380060324,1755522640208,-4140.93,0.0002252,3]
[380060326,1755522640218,-825.33,0.0002252,3]
[380060328,1755522640228,-1050.53,0.0002252,3]
[380060330,1755522640237,-994.25611118,0.00022521,2]
[380060332,1755522640247,-154.38,0.00022521,2]
[380060334,1755522640257,-200.0,0.00022551,20]
[380060335,1755522640266,-200.0,0.00022551,20]
[380060338,1755522640276,-200.0,0.00022551,20]
[380060340,1755522640286,-200.0,0.00022551,20]
[380060341,1755522640295,-200.0,0.00022551,20]
[380060343,1755522640305,-200.0,0.00022551,20]
[380060345,1755522640315,-200.0,0.00022551,20]
[380060347,1755522640324,-200.0,0.00022551,20]
[380060349,1755522640333,-200.0,0.00022551,20]
[380060351,1755522640343,-200.0,0.00022551,20]
[380060353,1755522640353,-862.15487734,0.00022572,2]
[380060355,1755522640362,-480.0,0.00022588,3]
[380060357,1755522640372,-480.0,0.00022588,3]
[380060359,1755522640381,-862.15487734,0.00022652,2]
[380060361,1755522640392,-1570.99,0.00022662,3]
[380060364,1755522640402,-412.04088159,0.00022671,3]
[380060367,1755522640411,-480.0,0.00022671,3]
[380060370,1755522640421,-818.27,0.00022671,3]
[380060373,1755522640432,-480.0,0.00022671,3]
[380060376,1755522640442,-480.0,0.00022671,3]
[380060379,1755522640453,-480.0,0.00022672,3]
[380060382,1755522640462,-583.75,0.00022672,3]
[380060385,1755522640472,-6143.04,0.00022672,3]
[380060387,1755522640481,-480.0,0.00022672,3]
[380060390,1755522640491,-443.07672306,0.00022672,3]
[380060393,1755522640501,-8378.93,0.00022672,3]
[380060395,1755522640510,-668.35,0.00022672,3]
[380060397,1755522640520,-1345.64,0.00022672,3]
[380060399,1755522640529,-428.35949057,0.00022672,3]
[380060401,1755522640538,-524.51,0.00022672,3]
[380060403,1755522640548,-939.53,0.00022672,3]
[380060405,1755522640557,-491.64174353,0.00022672,3]
[380060407,1755522640566,-1292.81,0.00022672,3]
[380060409,1755522640576,-480.0,0.00022672,3]
[380060411,1755522640589,-480.0,0.00022672,3]
[380060413,1755522640599,-862.15487734,0.00022731,2]
[380060415,1755522640612,-1570.99,0.00022774,3]
[380060417,1755522640622,-151.0,0.00022774,7]
[380060419,1755522640632,-151.0,0.00022774,7]
[380060421,1755522640641,-151.0,0.00022774,7]
[380060423,1755522640651,-903.03673588,0.0002278,2]
[380060425,1755522640664,-2048.77,0.00022784,3]
[380060427,1755522640674,-3012.39800075,0.00022794,2]
[380060429,1755522640683,-480.0,0.00022794,3]
[380060431,1755522640693,-480.0,0.00022794,3]
[380060433,1755522640702,-480.0,0.00022794,3]
[380060435,1755522640712,-480.0,0.00022794,3]
[380060437,1755522640721,-1868.82,0.00022794,3]
[380060439,1755522640731,-480.0,0.00022794,3]
[380060441,1755522640740,-480.0,0.00022794,3]
[380060443,1755522640750,-480.0,0.00022794,3]
[380060445,1755522640760,-480.0,0.00022794,3]
[380060447,1755522640769,-480.0,0.00022794,3]
[380060449,1755522640779,-480.0,0.00022794,3]
[380060451,1755522640788,-440.0,0.00022794,3]
[380060453,1755522640798,-480.0,0.00022794,3]
[380060455,1755522640807,-480.0,0.00022794,3]
[380060457,1755522640817,-443.37944888,0.00022794,3]
[380060459,1755522640826,-440.0,0.00022794,3]
[380060461,1755522640835,-480.0,0.00022794,3]
[380060463,1755522640845,-150.86,0.00022794,3]
[380060465,1755522640858,-440.0,0.00022794,3]
[380060467,1755522640867,-1302.73,0.00022794,3]
[380060469,1755522640877,-440.0,0.00022794,3]
[380060471,1755522640887,-480.0,0.00022794,3]
[380060473,1755522640896,-480.0,0.00022794,3]
[380060475,1755522640906,-480.0,0.00022794,3]
[380060477,1755522640915,-480.0,0.00022794,3]
[380060479,1755522640924,-480.0,0.00022794,3]
[380060481,1755522640934,-480.0,0.00022794,3]
[380060483,1755522640943,-466.78,0.00022794,3]
[380060485,1755522640952,-480.0,0.00022794,3]
[380060487,1755522640962,-440.0,0.00022794,3]
[380060489,1755522640972,-480.0,0.00022794,3]
[380060491,1755522640981,-480.0,0.00022794,3]
[380060493,1755522640991,-480.0,0.00022794,3]
[380060495,1755522641000,-480.0,0.00022794,3]
[380060497,1755522641011,-480.0,0.00022794,3]
[380060499,1755522641020,-241.65875007,0.00022794,3]
[380060501,1755522641030,-440.0,0.00022794,3]
[380060503,1755522641040,-480.0,0.00022794,3]
[380060505,1755522641049,-440.0,0.00022794,3]
[380060507,1755522641058,-448.04151959,0.00022794,3]
[380060509,1755522641068,-480.0,0.00022794,3]
[380060511,1755522641077,-440.0,0.00022794,3]
[380060513,1755522641087,-440.0,0.00022794,3]
[380060515,1755522641096,-480.0,0.00022794,3]
[380060517,1755522641107,-480.0,0.00022794,3]
[380060518,1755522641116,-440.0,0.00022794,3]
[380060520,1755522641126,-440.0,0.00022794,3]
[380060522,1755522641135,-480.0,0.00022794,3]
[380060524,1755522641144,-446.78846411,0.00022794,3]
[380060526,1755522641154,-480.0,0.00022794,3]
[380060528,1755522641163,-480.0,0.00022794,3]
[380060530,1755522641173,-440.0,0.00022794,3]
[380060532,1755522641182,-480.0,0.00022794,3]
[380060534,1755522641192,-480.0,0.00022794,3]
[380060536,1755522641201,-1959.53,0.00022794,3]
[380060538,1755522641211,-480.0,0.00022794,3]
[380060539,1755522641221,-3358.6,0.00022794,3]
[380060540,1755522641230,-480.0,0.00022794,3]
[380060541,1755522641239,-480.0,0.00022794,3]
[380060542,1755522641249,-480.0,0.00022794,3]
[380060544,1755522641259,-480.0,0.00022794,3]
[380060546,1755522641268,-480.0,0.00022794,3]
[380060547,1755522641277,-443.57745868,0.00022794,3]
[380060548,1755522641287,-601.1,0.00022794,3]
[380060550,1755522641296,-441.06997237,0.00022794,3]
[380060553,1755522641305,-480.0,0.00022794,3]
[380060554,1755522641315,-480.0,0.00022794,3]
[380060556,1755522641324,-450.68243222,0.00022794,3]
[380060558,1755522641334,-550.04,0.00022794,3]
[380060560,1755522641344,-480.0,0.00022794,3]
[380060562,1755522641354,-440.0,0.00022794,3]
[380060564,1755522641364,-1724.96,0.00022794,3]
[380060566,1755522641373,-239.287922,0.00022794,7]
[380060568,1755522641382,-975.37,0.00022794,3]
[380060570,1755522641392,-574.07,0.00022794,3]
[380060572,1755522641401,-480.0,0.00022794,3]
[380060574,1755522641410,-761.62,0.00022794,3]
[380060576,1755522641419,-480.0,0.00022794,3]
[380060578,1755522641429,-443.19031025,0.00022794,3]
[380060579,1755522641438,-480.0,0.00022794,3]
[380060580,1755522641447,-714.19,0.00022794,3]
[380060582,1755522641456,-151.0,0.00022794,7]
[380060584,1755522641465,-887.04,0.00022794,3]
[380060585,1755522641475,-480.0,0.00022794,3]
[380060587,1755522641486,-480.0,0.00022794,3]
[380060589,1755522641495,-480.0,0.00022794,3]
[380060591,1755522641504,-480.0,0.00022794,3]
[380060593,1755522641513,-1572.47,0.00022794,3]
[380060595,1755522641523,-480.0,0.00022794,3]
[380060596,1755522641532,-449.87961014,0.00022794,3]
[380060597,1755522641542,-480.0,0.00022794,3]
[380060598,1755522641551,-1612.83,0.00022794,3]
[380060599,1755522641560,-906.0,0.00022794,2]
[380060600,1755522641569,-151.0,0.00022794,7]
[380060601,1755522641579,-151.0,0.00022794,7]
[380060602,1755522641591,-480.0,0.00022794,3]
[380060603,1755522641600,-4140.93,0.00022794,3]
[380060604,1755522641610,-825.33,0.00022794,3]
[380060605,1755522641619,-1050.53,0.00022794,3]
[380060606,1755522641630,-435.46,0.00022795,2]
[380060607,1755522641639,-862.15487734,0.00022811,2]
[380060608,1755522641649,-151.0,0.00022818,7]
[380060609,1755522641660,-151.0,0.00022818,7]
[380060610,1755522641669,-151.0,0.00022818,7]
[380060611,1755522641678,-151.0,0.00022818,7]
[380060612,1755522641688,-151.0,0.00022818,7]
[380060613,1755522641697,-151.0,0.00022818,7]
[380060614,1755522641707,-151.0,0.00022818,7]
[380060615,1755522641716,-5163.32042153,0.00022818,2]
[380060616,1755522641725,-1642.11,0.00022852,3]
[380060617,1755522641735,-480.0,0.00022852,3]
[380060618,1755522641745,-480.0,0.00022852,3]
[380060619,1755522641754,-461.52536878,0.00022852,3]
[380060620,1755522641764,-480.0,0.00022852,3]
[380060621,1755522641773,-2359.42,0.00022852,3]
[380060622,1755522641783,-386.06479975,0.00022852,3]
[380060623,1755522641792,-547.04,0.00022852,3]
[380060624,1755522641897,-480.0,0.00022852,3]
[380060625,1755522641908,-480.0,0.00022852,3]
[380060626,1755522641917,-480.0,0.00022852,3]
[380060627,1755522641927,-480.0,0.00022852,3]
[380060628,1755522641937,-480.0,0.00022862,3]
[380060629,1755522641947,-480.0,0.00022862,3]
[380060630,1755522641957,-255.0,0.00022871,2]
[380060631,1755522641966,-160.65128319,0.00022871,2]
[380060632,1755522641976,-862.15487734,0.0002289,2]
[380060633,1755522641985,-151.0,0.00022896,2]
[380060634,1755522641995,-152.11094071,0.00022896,2]
[380060635,1755522642006,-755.0,0.00022896,2]
[380060636,1755522642016,-17842.522448,0.00022896,2]
[380060637,1755522642026,-480.0,0.00022899,3]
[380060638,1755522642036,-811.16,0.00022899,3]
[380060639,1755522642045,-1200.04,0.00022899,3]
[380060640,1755522642055,-151.0,0.00022899,7]
[380060641,1755522642064,-285.413518,0.00022899,7]
[380060642,1755522642073,-285.413518,0.00022899,7]
[380060643,1755522642083,-151.0,0.00022899,7]
[380060644,1755522642092,-322.383977,0.00022899,7]
[380060645,1755522642102,-322.383977,0.00022899,7]
[380060646,1755522642111,-480.0,0.00022899,3]
[380060647,1755522642120,-151.0,0.00022899,7]
[380060648,1755522642130,-151.0,0.00022899,7]
[380060649,1755522642140,-151.0,0.00022899,7]
[380060650,1755522642149,-151.0,0.00022899,7]
[380060651,1755522642159,-151.0,0.00022899,7]
[380060652,1755522642168,-983.41,0.00022899,3]
[380060653,1755522642178,-480.0,0.00022899,3]
[380060654,1755522642187,-462.87787329,0.00022899,3]
[380060655,1755522642197,-151.0,0.00022899,7]
[380060656,1755522642206,-480.0,0.00022899,3]
[380060657,1755522642215,-151.0,0.00022899,7]
[380060658,1755522642225,-151.0,0.000229,7]
[380060659,1755522642235,-153.708351,0.000229,7]
[380060660,1755522642245,-151.0,0.000229,7]
[380060661,1755522642255,-151.0,0.000229,7]
[380060662,1755522642264,-151.0,0.0002291,7]